fUSD/lending_fUSD_20260408
["ID","MTS","AMOUNT","RATE_DAILY","PERIOD"]
[420050357,1775633446368,-200.0,0.0001,2]
[420050359,1775633446378,-500.0,0.0001,2]
[420050360,1775633446389,-916.46729421,0.0001,2]
[420050361,1775633446399,-916.46729421,0.0001,2]
[420050362,1775633446409,-1005.0,0.0001002,2]
[420050363,1775633446420,-366.0,0.0001004,2]
[420050364,1775633446430,-530.0,0.00010059,2]
[420050365,1775633446441,-1341.0,0.00010079,2]
[420050366,1775633446451,-1979.0,0.00010099,2]
[420050367,1775633446462,-200.0,0.000101,2]
[420050368,1775633446472,-200.0,0.000101,2]
[420050369,1775633446483,-807.5,0.00010116,2]
[420050370,1775633446493,-154.73,0.00010149,2]
[420050371,1775633446503,-309.47,0.00010152,2]
[420050372,1775633446514,-154.73,0.00010156,2]
[420050373,1775633446525,-800.0,0.00010159,2]
[420050374,1775633446534,-476.27,0.00010159,2]
[420050375,1775633446544,-600.0,0.00010179,2]
[420050376,1775633446555,-30342.45528673,0.000102,2]
[420050377,1775633446564,-200.0,0.00010201,2]
[420050378,1775633446574,-200.0,0.00010201,2]
[420050379,1775633446586,-235.19,0.00010273,2]
[420050380,1775633446597,-500.0,0.00010274,2]
[420050381,1775633446608,-200.0,0.00010303,2]
[420050382,1775633446618,-200.0,0.00010303,2]
[420050383,1775633446628,-206.53,0.00010352,2]
[420050384,1775633446638,-1000.0,0.00010381,2]
[420050385,1775633446648,-1001.20287893,0.00010381,2]
[420050386,1775633446658,-1000.0,0.00010381,2]
[420050387,1775633446669,-1001.73893264,0.00010381,2]
[420050388,1775633446679,-1000.0,0.00010381,2]
[420050389,1775633446691,-1000.0,0.00010381,2]
[420050390,1775633446701,-550.3869963,0.00010381,2]
[420050391,1775633446714,-1000.0,0.00010381,2]
[420050392,1775633446724,-1000.0,0.00010381,2]
[420050393,1775633446734,-1000.0,0.00010381,2]
[420050394,1775633446745,-1000.54232895,0.00010381,2]
[420050395,1775633446754,-1000.0,0.00010381,2]
[420050396,1775633446763,-1000.0,0.00010381,2]
[420050397,1775633446773,-1000.0,0.00010381,2]
[420050398,1775633446783,-457.9438199,0.00010381,2]
[420050399,1775633446793,-807.5,0.0001039,2]
[420050400,1775633446803,-200.0,0.00010406,2]
[420050401,1775633446813,-200.0,0.00010406,2]
[420050402,1775633446823,-15182.74800929,0.00010408,2]
[420050403,1775633446833,-500.0,0.00010548,2]
[420050404,1775633446843,-200.0,0.00010548,2]
[420050405,1775633446852,-281.72626647,0.00010548,2]
[420050406,1775633446861,-1243.57659104,0.00010548,2]
[420050407,1775633446871,-807.5,0.00010664,2]
[420050408,1775633446881,-1680.0,0.00010665,2]
[420050409,1775633446892,-420.0,0.00010698,2]
[420050410,1775633446902,-420.0,0.00010698,2]
[420050411,1775633446912,-255.0,0.00010698,2]
[420050412,1775633446922,-5000.0,0.00010699,2]
[420050413,1775633446931,-193.0,0.00010699,2]
[420050414,1775633446941,-5000.0,0.00010699,2]
[420050415,1775633446951,-150.0,0.000108,2]
[420050416,1775633446961,-500.0,0.00010822,2]
[420050417,1775633446972,-7464.2429842,0.000109,2]
[420050418,1775633446982,-1391.89335958,0.00010928,2]
[420050419,1775633446991,-1500.0,0.00010928,2]
[420050420,1775633447001,-1500.0,0.00010928,2]
[420050421,1775633447011,-500.87166627,0.00010928,2]
[420050422,1775633447021,-1500.0,0.00010928,2]
[420050423,1775633447031,-1500.0,0.00010928,2]
[420050424,1775633447040,-1500.0,0.00010928,2]
[420050425,1775633447050,-209.52918559,0.00010928,2]
[420050426,1775633447060,-1500.0,0.00010928,2]
[420050427,1775633447070,-1500.0,0.00010928,2]
[420050428,1775633447079,-807.5,0.00010938,2]
[420050429,1775633447089,-181.0,0.00010952,2]
[420050430,1775633447099,-500.0,0.00010959,2]
[420050431,1775633447110,-150.0,0.00010959,2]
[420050432,1775633447120,-281.0,0.00010974,2]
[420050433,1775633447129,-221.0,0.00010996,2]
[420050434,1775633447139,-151.502,0.00010999,2]
[420050435,1775633447150,-196.0,0.00011017,2]
[420050436,1775633447160,-500.0,0.00011096,2]
[420050437,1775633447170,-200.0,0.00011096,2]
[420050438,1775633447181,-1289.58892491,0.00011096,2]
[420050439,1775633447191,-15191.78708738,0.00011099,2]
[420050440,1775633447201,-15191.78708735,0.00011099,2]
[420050441,1775633447212,-15191.78708735,0.00011099,2]
[420050442,1775633447222,-15191.78708735,0.00011099,2]
[420050443,1775633447232,-15191.78708735,0.00011099,2]
[420050444,1775633447242,-15191.78708735,0.00011099,2]
[420050445,1775633447252,-15191.78708735,0.00011099,2]
[420050446,1775633447262,-15191.78708735,0.00011099,2]
[420050447,1775633447272,-15191.78708735,0.00011099,2]
[420050448,1775633447284,-15191.78708735,0.00011099,2]
[420050449,1775633447294,-235.19,0.00011207,2]
[420050450,1775633447305,-807.5,0.00011212,2]
[420050451,1775633447315,-500.0,0.0001137,2]
[420050452,1775633447325,-160.0,0.00011461,2]
[420050453,1775633447334,-1077.550624,0.00011461,2]
[420050454,1775633447345,-1995.101249,0.00011461,2]
[420050455,1775633447355,-160.0,0.00011461,2]
[420050456,1775633447366,-1105.294123,0.00011461,2]
[420050457,1775633447376,-2050.588246,0.00011461,2]
[420050459,1775633447386,-197.421536,0.00011461,2]
[420050461,1775633447396,-160.0,0.00011461,2]
[420050464,1775633447407,-1364.031633,0.00011461,2]
[420050466,1775633447418,-2568.063267,0.00011461,2]
[420050468,1775633447428,-388.31411686,0.00011464,2]
[420050470,1775633447438,-1015.28558372,0.00011476,2]
[420050471,1775633447447,-2000.0,0.00011476,2]
[420050473,1775633447457,-2000.0,0.00011476,2]
[420050475,1775633447468,-2000.0,0.00011476,2]
[420050477,1775633447479,-2000.0,0.00011476,2]
[420050479,1775633447489,-2000.0,0.00011476,2]
[420050481,1775633447498,-2000.0,0.00011476,2]
[420050484,1775633447509,-807.5,0.00011485,2]
[420050485,1775633447519,-6139.41,0.00011507,2]
[420050488,1775633447529,-500.0,0.00011644,2]
[420050490,1775633447539,-200.0,0.00011644,2]
[420050491,1775633447549,-1337.30371513,0.00011644,2]
[420050493,1775633447559,-3105.0,0.0001166,3]
[420050495,1775633447569,-8608.12,0.00011674,2]
[420050497,1775633447579,-2351.0,0.00011731,2]
[420050499,1775633447589,-807.52785208,0.00011759,2]
[420050502,1775633447599,-316.0,0.00011767,2]
[420050504,1775633447610,-587.0,0.00011767,2]
[420050506,1775633447620,-433.0,0.00011767,2]
[420050507,1775633447630,-160.0,0.00011784,2]
[420050509,1775633447639,-1634.505986,0.00011784,2]
[420050511,1775633447649,-3109.011972,0.00011784,2]
[420050513,1775633447659,-500.0,0.00011918,2]
[420050515,1775633447669,-2500.0,0.00012024,2]
[420050517,1775633447679,-539.0506784,0.00012024,2]
[420050520,1775633447690,-2500.0,0.00012024,2]
[420050522,1775633447701,-394.44940628,0.00012024,2]
[420050523,1775633447711,-2500.0,0.00012024,2]
[420050524,1775633447721,-2503.61823881,0.00012024,2]
[420050525,1775633447730,-1469.387215,0.00012034,2]
[420050526,1775633447740,-1507.219259,0.00012034,2]
[420050527,1775633447751,-1860.043137,0.00012034,2]
[420050528,1775633447761,-171.0431,0.000121,2]
[420050529,1775633447771,-235.19,0.00012141,2]
[420050530,1775633447780,-154.0,0.00012176,3]
[420050531,1775633447790,-521.7952616,0.00012192,2]
[420050532,1775633447801,-200.0,0.00012192,2]
[420050533,1775633447811,-1386.78395259,0.00012192,2]
[420050534,1775633447822,-242.14897545,0.00012356,2]
[420050535,1775633447832,-2228.871799,0.00012373,2]
[420050536,1775633447842,-600.0,0.00012502,2]
[420050537,1775633447852,-1233.66702618,0.00012572,2]
[420050538,1775633447862,-830.49918647,0.00012572,2]
[420050539,1775633447871,-3000.0,0.00012572,2]
[420050540,1775633447880,-206.53,0.00012628,2]
[420050541,1775633447890,-151.0,0.00012739,2]
[420050542,1775633447900,-200.0,0.0001274,2]
[420050543,1775633447912,-522.24641407,0.0001274,2]
[420050544,1775633447922,-3759.78474097,0.00012829,2]
[420050545,1775633447932,-16277.18291445,0.00012829,2]
[420050546,1775633447942,-3292.0,0.00012904,2]
[420050547,1775633447951,-823.0,0.00012944,2]
[420050548,1775633447962,-736.0,0.00012944,2]
[420050549,1775633447972,-235.19,0.00013074,2]
[420050550,1775633447983,-506.0,0.000131,2]
[420050551,1775633447993,-1503.75016468,0.0001312,2]
[420050552,1775633448002,-764.081352,0.00013181,2]
[420050553,1775633448012,-783.754014,0.00013181,2]
[420050554,1775633448022,-967.222431,0.00013181,2]
[420050555,1775633448032,-186.92363364,0.00013199,2]
[420050556,1775633448042,-150.0,0.00013286,2]
[420050557,1775633448053,-150.0,0.00013287,2]
[420050558,1775633448063,-150.0,0.00013288,2]
[420050559,1775633448074,-201.60184993,0.00013288,2]
[420050560,1775633448083,-252.4606697,0.00013293,2]
[420050561,1775633448093,-3240.0,0.00013425,2]
[420050562,1775633448103,-150.0,0.00013445,2]
[420050563,1775633448114,-176.43176158,0.00013462,2]
[420050564,1775633448123,-195.0383,0.000135,2]
[420050565,1775633448134,-600.0,0.00013517,2]
[420050566,1775633448144,-1159.013335,0.00013551,2]
[420050567,1775633448153,-206.53,0.00013561,2]
[420050568,1775633448163,-3105.0,0.00013594,3]
[420050569,1775633448173,-576.75688538,0.00013675,2]
[420050570,1775633448183,-501.50073946,0.00013698,2]
[420050571,1775633448192,-500.0,0.00013698,2]
[420050572,1775633448202,-500.0,0.00013698,2]
[420050573,1775633448212,-500.0,0.00013698,2]
[420050574,1775633448222,-500.0,0.00013698,2]
[420050575,1775633448232,-500.0,0.00013698,2]
[420050576,1775633448243,-500.0,0.00013698,2]
[420050577,1775633448252,-500.0,0.00013698,2]
[420050578,1775633448262,-500.0,0.00013698,2]
[420050579,1775633448272,-637.2484516,0.00013698,2]
[420050580,1775633448282,-500.0,0.00013698,2]
[420050581,1775633448292,-500.0,0.00013698,2]
[420050582,1775633448302,-500.0,0.00013698,2]
[420050583,1775633448312,-500.0,0.00013698,2]
[420050584,1775633448322,-500.0,0.00013698,2]
[420050585,1775633448331,-500.0,0.00013698,2]
[420050586,1775633448341,-500.0,0.00013698,2]
[420050587,1775633448351,-500.0,0.00013698,2]
[420050588,1775633448360,-500.14075642,0.00013698,2]
[420050589,1775633448370,-500.0,0.00013698,2]
[420050590,1775633448380,-500.0,0.00013698,2]
[420050591,1775633448390,-500.0,0.00013698,2]
[420050592,1775633448399,-500.0,0.00013698,2]
[420050593,1775633448409,-500.0,0.00013698,2]
[420050594,1775633448419,-500.0,0.00013698,2]
[420050595,1775633448428,-500.0,0.00013698,2]
[420050596,1775633448438,-500.0,0.00013698,2]
[420050597,1775633448447,-500.0,0.00013698,2]
[420050598,1775633448457,-500.0,0.00013698,2]
[420050599,1775633448467,-500.0,0.00013698,2]
[420050600,1775633448477,-500.0,0.00013698,2]
[420050601,1775633448486,-392.00957995,0.00013698,2]
[420050602,1775633448496,-500.0,0.00013698,2]
[420050603,1775633448507,-500.0,0.00013698,2]
[420050604,1775633448516,-500.0,0.00013698,2]
[420050605,1775633448527,-500.0,0.00013698,2]
[420050606,1775633448536,-500.0,0.00013698,2]
[420050607,1775633448546,-500.0,0.00013698,2]
[420050608,1775633448555,-500.0,0.00013698,2]
[420050609,1775633448566,-500.0,0.00013698,2]
[420050610,1775633448576,-500.0,0.00013698,2]
[420050611,1775633448586,-500.0,0.00013698,2]
[420050612,1775633448597,-500.0,0.00013698,2]
[420050613,1775633448607,-500.0,0.00013698,2]
[420050614,1775633448617,-500.0,0.00013698,2]
[420050615,1775633448626,-500.0,0.00013698,2]
[420050616,1775633448636,-500.0,0.00013698,2]
[420050617,1775633448646,-500.0,0.00013698,2]
[420050618,1775633448656,-500.0,0.00013698,2]
[420050619,1775633448665,-500.0,0.00013698,2]
[420050620,1775633448675,-644.24464926,0.00013698,2]
[420050621,1775633448685,-500.0,0.00013698,2]
[420050622,1775633448695,-500.0,0.00013698,2]
[420050623,1775633448704,-500.0,0.00013698,2]
[420050624,1775633448714,-500.0,0.00013698,2]
[420050625,1775633448724,-500.0,0.00013698,2]
[420050626,1775633448735,-500.0,0.00013698,2]
[420050627,1775633448745,-514.41880912,0.00013698,2]
[420050628,1775633448754,-500.0,0.00013698,2]
[420050629,1775633448764,-500.0,0.00013698,2]
[420050630,1775633448774,-500.0,0.00013698,2]
[420050631,1775633448783,-500.0,0.00013698,2]
[420050632,1775633448793,-500.0,0.00013698,2]
[420050633,1775633448803,-500.0,0.00013698,2]
[420050634,1775633448813,-500.0,0.00013698,2]
[420050635,1775633448823,-500.0,0.00013698,2]
[420050636,1775633448833,-500.0,0.00013698,2]
[420050637,1775633448842,-500.0,0.00013698,2]
[420050638,1775633448852,-500.0,0.00013698,2]
[420050639,1775633448861,-500.0,0.00013698,2]
[420050640,1775633448871,-500.0,0.00013698,2]
[420050641,1775633448881,-630.71,0.00013698,2]
[420050642,1775633448891,-500.0,0.00013698,2]
[420050643,1775633448901,-504.74596653,0.00013698,2]
[420050644,1775633448910,-500.0,0.00013698,2]
[420050645,1775633448920,-500.0,0.00013698,2]
[420050646,1775633448929,-500.0,0.00013698,2]
[420050647,1775633448939,-500.0,0.00013698,2]
[420050648,1775633448949,-500.0,0.00013698,2]
[420050649,1775633448958,-500.0,0.00013698,2]
[420050650,1775633448967,-500.0,0.00013698,2]
[420050651,1775633448977,-500.0,0.00013698,2]
[420050652,1775633448988,-500.0,0.00013698,2]
[420050653,1775633448998,-499.6872898,0.00013698,2]
[420050654,1775633449008,-500.0,0.00013698,2]
[420050655,1775633449018,-500.0,0.00013698,2]
[420050656,1775633449028,-500.0,0.00013698,2]
[420050657,1775633449038,-500.0,0.00013698,2]
[420050658,1775633449048,-500.0,0.00013698,2]
[420050659,1775633449058,-500.0,0.00013698,2]
[420050660,1775633449068,-500.0,0.00013698,2]
[420050661,1775633449391,-500.0,0.00013698,2]
[420050662,1775633449402,-500.0,0.00013698,2]
[420050663,1775633449412,-500.0,0.00013698,2]
[420050664,1775633449422,-500.0,0.00013698,2]
[420050665,1775633449432,-500.0,0.00013698,2]
[420050666,1775633449443,-500.0,0.00013698,2]
[420050667,1775633449454,-500.0,0.00013698,2]
[420050668,1775633449464,-500.0,0.00013698,2]
[420050669,1775633449474,-500.0,0.00013698,2]
[420050670,1775633449485,-500.0,0.00013698,2]
[420050671,1775633449495,-223.3967903,0.00013698,2]
[420050672,1775633449505,-500.0,0.00013698,2]
[420050673,1775633449516,-419.40847116,0.00013698,2]
[420050674,1775633449526,-500.0,0.00013698,2]
[420050675,1775633449535,-500.0,0.00013698,2]
[420050676,1775633449545,-500.45174561,0.00013698,2]
[420050677,1775633449556,-500.03954585,0.00013698,2]
[420050678,1775633449566,-500.0,0.00013698,2]
[420050679,1775633449576,-500.0,0.00013698,2]
[420050680,1775633449586,-500.0,0.00013698,2]
[420050681,1775633449597,-500.0,0.00013698,2]
[420050682,1775633449607,-406.01852309,0.00013698,2]
[420050683,1775633449616,-500.0,0.00013698,2]
[420050684,1775633449626,-500.0,0.00013698,2]
[420050685,1775633449635,-500.0,0.00013698,2]
[420050686,1775633449645,-500.0,0.00013698,2]
[420050687,1775633449655,-500.0,0.00013698,2]
[420050688,1775633449665,-500.0,0.00013698,2]
[420050689,1775633449675,-500.0,0.00013698,2]
[420050690,1775633449685,-420.19790691,0.00013698,2]
[420050691,1775633449695,-500.0,0.00013698,2]
[420050692,1775633449706,-500.0,0.00013698,2]
[420050693,1775633449716,-500.0,0.00013698,2]
[420050694,1775633449727,-500.0,0.00013698,2]
[420050695,1775633449737,-500.0,0.00013698,2]
[420050696,1775633449748,-500.0,0.00013698,2]
[420050697,1775633449759,-500.0,0.00013698,2]
[420050698,1775633449769,-467.66178343,0.00013698,2]
[420050699,1775633449780,-500.0,0.00013698,2]
[420050700,1775633449791,-500.0,0.00013698,2]
[420050701,1775633449801,-500.0,0.00013698,2]
[420050702,1775633449811,-500.0,0.00013698,2]
[420050703,1775633449821,-500.0,0.00013698,2]
[420050704,1775633449832,-500.0,0.00013698,2]
[420050705,1775633449842,-500.0,0.00013698,2]
[420050706,1775633449853,-500.0,0.00013698,2]
[420050707,1775633449863,-500.0,0.00013698,2]
[420050708,1775633449872,-500.0,0.00013698,2]
[420050709,1775633449882,-248.76967055,0.00013698,2]
[420050710,1775633449892,-500.0,0.00013698,2]
[420050711,1775633449902,-500.0,0.00013698,2]
[420050712,1775633449912,-500.0,0.00013698,2]
[420050713,1775633449922,-500.0,0.00013698,2]
[420050714,1775633449932,-500.0,0.00013698,2]
[420050715,1775633449942,-500.0,0.00013698,2]
[420050716,1775633449952,-500.0,0.00013698,2]
[420050717,1775633449962,-542.71692042,0.00013698,2]
[420050718,1775633449971,-500.0,0.00013698,2]
[420050719,1775633449982,-500.0,0.00013698,2]
[420050720,1775633449992,-500.0,0.00013698,2]
[420050721,1775633450002,-500.0,0.00013698,2]
[420050722,1775633450012,-500.0,0.00013698,2]
[420050723,1775633450022,-500.0,0.00013698,2]
[420050724,1775633450033,-500.0,0.00013698,2]
[420050725,1775633450043,-500.0,0.00013698,2]
[420050726,1775633450053,-500.0,0.00013698,2]
[420050727,1775633450063,-562.38643831,0.00013698,2]
[420050728,1775633450073,-500.0,0.00013698,2]
[420050729,1775633450084,-500.0,0.00013698,2]
[420050730,1775633450094,-500.0,0.00013698,2]
[420050731,1775633450104,-500.0,0.00013698,2]
[420050732,1775633450115,-500.0,0.00013698,2]
[420050733,1775633450125,-500.0,0.00013698,2]
[420050734,1775633450136,-500.0,0.00013698,2]
[420050735,1775633450146,-500.0,0.00013698,2]
[420050736,1775633450156,-500.0,0.00013698,2]
[420050737,1775633450168,-500.0,0.00013698,2]
[420050738,1775633450178,-500.0,0.00013698,2]
[420050739,1775633450189,-500.0,0.00013698,2]
[420050740,1775633450199,-500.0,0.00013698,2]
[420050741,1775633450209,-500.0,0.00013698,2]
[420050742,1775633450219,-500.0,0.00013698,2]
[420050743,1775633450230,-500.0,0.00013698,2]
[420050744,1775633450240,-553.39225555,0.00013698,2]
[420050745,1775633450250,-801.32,0.00013698,2]
[420050746,1775633450260,-801.32,0.00013698,2]
[420050747,1775633450271,-801.32,0.00013698,2]
[420050748,1775633450282,-801.32,0.00013698,2]
[420050749,1775633450292,-801.32,0.00013698,2]
[420050750,1775633450302,-801.32,0.00013698,2]
[420050751,1775633450312,-801.32,0.00013698,2]
[420050752,1775633450322,-801.32,0.00013698,2]
[420050753,1775633450332,-801.32,0.00013698,2]
[420050754,1775633450342,-801.32,0.00013698,2]
[420050755,1775633450353,-801.32,0.00013698,2]
[420050756,1775633450363,-801.32,0.00013698,2]
[420050757,1775633450373,-801.32,0.00013698,2]
[420050758,1775633450383,-801.32,0.00013698,2]
[420050759,1775633450393,-801.32,0.00013698,2]
[420050760,1775633450403,-801.32,0.00013698,2]
[420050761,1775633450413,-500.0,0.00013698,2]
[420050762,1775633450422,-500.0,0.00013698,2]
[420050763,1775633450432,-500.0,0.00013698,2]
[420050764,1775633450442,-264.78361919,0.00013698,2]
[420050765,1775633450451,-500.0,0.00013698,2]
[420050766,1775633450461,-500.0,0.00013698,2]
[420050767,1775633450471,-633.831471,0.00013698,2]
[420050768,1775633450480,-500.0,0.00013698,2]
[420050769,1775633450490,-500.0,0.00013698,2]
[420050770,1775633450500,-500.0,0.00013698,2]
[420050771,1775633450510,-500.0,0.00013698,2]
[420050772,1775633450520,-537.74,0.00013698,2]
[420050773,1775633450529,-537.74,0.00013698,2]
[420050774,1775633450539,-537.74,0.00013698,2]
[420050775,1775633450550,-537.74,0.00013698,2]
[420050776,1775633450561,-537.74,0.00013698,2]
[420050777,1775633450571,-537.74,0.00013698,2]
[420050778,1775633450581,-537.74,0.00013698,2]
[420050779,1775633450592,-537.74,0.00013698,2]
[420050780,1775633450602,-537.74,0.00013698,2]
[420050781,1775633450612,-537.74,0.00013698,2]
[420050782,1775633450622,-537.74,0.00013698,2]
[420050783,1775633450632,-537.74,0.00013698,2]
[420050784,1775633450642,-537.74,0.00013698,2]
[420050785,1775633450652,-537.74,0.00013698,2]
[420050786,1775633450661,-537.74,0.00013698,2]
[420050787,1775633450673,-537.74,0.00013698,2]
[420050788,1775633450684,-500.0,0.00013698,2]
[420050789,1775633450694,-500.0,0.00013698,2]
[420050790,1775633450705,-500.0,0.00013698,2]
[420050791,1775633450716,-500.0,0.00013698,2]
[420050792,1775633450725,-500.0,0.00013698,2]
[420050793,1775633450735,-500.0,0.00013698,2]
[420050794,1775633450745,-500.0,0.00013698,2]
[420050795,1775633450756,-595.48595604,0.00013698,2]
[420050796,1775633450766,-500.0,0.00013698,2]
[420050797,1775633450776,-500.0,0.00013698,2]
[420050798,1775633450995,-500.0,0.00013698,2]
[420050799,1775633451006,-500.0,0.00013698,2]
[420050800,1775633451017,-500.0,0.00013698,2]
[420050801,1775633451026,-500.0,0.00013698,2]
[420050802,1775633451036,-500.0,0.00013698,2]
[420050803,1775633451046,-500.0,0.00013698,2]
[420050804,1775633451056,-500.0,0.00013698,2]
[420050805,1775633451066,-500.0,0.00013698,2]
[420050806,1775633451076,-500.0,0.00013698,2]
[420050807,1775633451086,-500.0,0.00013698,2]
[420050808,1775633451095,-500.0,0.00013698,2]
[420050809,1775633451104,-522.8150328,0.00013698,2]
[420050810,1775633451114,-2138.0,0.00013699,2]
[420050811,1775633451125,-150.0,0.00013699,2]
[420050812,1775633451135,-150.0,0.00013699,2]
[420050813,1775633451144,-150.0,0.00013699,2]
[420050814,1775633451154,-476.15,0.00013699,2]
[420050815,1775633451164,-396.8,0.00013699,2]
[420050816,1775633451174,-330.66,0.00013699,2]
[420050817,1775633451184,-275.55,0.00013699,2]
[420050818,1775633451194,-229.63,0.00013699,2]
[420050819,1775633451205,-191.36,0.00013699,2]
[420050820,1775633451215,-159.46,0.00013699,2]
[420050821,1775633451225,-797.34,0.00013699,2]
[420050822,1775633451236,-200.0,0.00013699,2]
[420050823,1775633451245,-500.0,0.00013699,2]
[420050824,1775633451255,-500.0,0.00013699,2]
[420050825,1775633451266,-500.0,0.00013699,2]
[420050826,1775633451277,-500.0,0.00013699,2]
[420050827,1775633451287,-501.53334874,0.00013699,2]
[420050828,1775633451298,-500.0,0.00013699,2]
[420050829,1775633451309,-500.0,0.00013699,2]
[420050830,1775633451319,-500.0,0.00013699,2]
[420050831,1775633451330,-500.0,0.00013699,2]
[420050832,1775633451340,-500.0,0.00013699,2]
[420050833,1775633451354,-500.0,0.00013699,2]
[420050834,1775633451364,-500.0,0.00013699,2]
[420050835,1775633451374,-500.0,0.00013699,2]
[420050836,1775633451384,-500.0,0.00013699,2]
[420050837,1775633451394,-500.0,0.00013699,2]
[420050838,1775633451404,-361.43877969,0.00013699,2]
[420050839,1775633451415,-500.0,0.00013699,2]
[420050840,1775633451424,-500.0,0.00013699,2]
[420050841,1775633451435,-500.0,0.00013699,2]
[420050842,1775633451445,-500.0,0.00013699,2]
[420050843,1775633451455,-500.0,0.00013699,2]
[420050844,1775633451465,-500.0,0.00013699,2]
[420050845,1775633451476,-500.0,0.00013699,2]
[420050846,1775633451486,-500.0,0.00013699,2]
[420050847,1775633451497,-500.0,0.00013699,2]
[420050848,1775633451507,-500.0,0.00013699,2]
[420050849,1775633451517,-474.64837932,0.00013699,2]
[420050850,1775633451527,-500.0,0.00013699,2]
[420050851,1775633451537,-163.86569709,0.00013699,2]
[420050852,1775633451548,-500.0,0.00013699,2]
[420050853,1775633451558,-500.0,0.00013699,2]
[420050854,1775633451569,-500.0,0.00013699,2]
[420050855,1775633451579,-500.32940014,0.00013699,2]
[420050856,1775633451589,-503.98766467,0.00013699,2]
[420050857,1775633451599,-290.88257095,0.00013699,2]
[420050858,1775633451610,-164.42313659,0.00013699,2]
[420050859,1775633451620,-1000.0,0.00013699,7]
[420050860,1775633451630,-500.0,0.00013699,2]
[420050861,1775633451640,-153.97,0.00013699,2]
[420050862,1775633451650,-1000.0,0.00013699,2]
[420050863,1775633451660,-538.78941312,0.0001374,2]
[420050864,1775633451671,-1104.517167,0.00013914,2]
[420050865,1775633451681,-372.32,0.00013939,2]
[420050866,1775633451690,-150.0,0.00013973,2]
[420050867,1775633451701,-150.0,0.00013973,2]
[420050868,1775633451710,-150.0,0.00013973,2]
[420050869,1775633451720,-500.0,0.00014,2]
[420050870,1775633451730,-4733.74989347,0.00014006,2]
[420050871,1775633451740,-235.19,0.00014008,2]
[420050872,1775633451750,-2885.74,0.0001405,2]
[420050873,1775633451760,-150.11484194,0.00014129,2]
[420050874,1775633451770,-150.0,0.00014129,2]
[420050875,1775633451780,-150.0,0.00014129,2]
[420050876,1775633451792,-150.0,0.00014129,2]
[420050877,1775633451803,-150.12907206,0.00014129,2]
[420050878,1775633451814,-150.0,0.00014129,2]
[420050879,1775633451824,-150.0,0.00014129,2]
[420050880,1775633451834,-150.0,0.00014129,2]
[420050881,1775633451844,-150.0,0.00014129,2]
[420050882,1775633451854,-150.0,0.00014129,2]
[420050883,1775633451864,-150.0,0.00014129,2]
[420050884,1775633451874,-150.13966067,0.00014129,2]
[420050885,1775633451883,-150.0,0.00014129,2]
[420050886,1775633451893,-150.0,0.00014152,2]
[420050887,1775633451903,-150.0,0.00014156,2]
[420050888,1775633451912,-150.0,0.0001416,2]
[420050889,1775633451922,-150.0,0.00014165,2]
[420050890,1775633451932,-150.0,0.00014169,2]